Cogmind - Beta 17 @@@ ROGUE MODE // 2026.06.24 @ 17:58:16 // AFD2019/Pay2Buy Player: Minty Result: Destroyed by 7T-BXW(R) with Subdweller Machine Gun Performance ------------- Evolutions (0) 0 Regions Visited (2) 400 Robots Destroyed (31) 155 Value Destroyed (1064) 1064 Prototype IDs (17) 340 Alien Tech Used (0) 0 Bonus (7482) 7482 TOTAL SCORE: 9441 Bonus ------- High Alert Combat Kills 32 Prayed to X0-1V1 5000 Major X0-1V1 Interference 2450 Cogmind --------- Core Integrity 0/250 Matter 15/1000 Energy 265/265 System Corruption 0% Temperature Cool (-666) Movement Flying (34) Location -10/Subcaves Parts ------- > --- POWER (2) -------- Improved Ion Engine > --- PROPULSION (3) --- Improved Flight Unit Improved Flight Unit Improved Flight Unit (fused) > --- UTILITY (1) ------ Structural Scanner > --- WEAPON (1) ------- (None) > --- INVENTORY (10) --- Carbon-fiber Leg Improved Flight Unit Sensor Array Signal Interpreter Heavy Assault Rifle Subdweller Shrapnel Launcher Peak State ------------ > --- POWER ------------ Cooled Ion Engine > --- PROPULSION ------- Improved Flight Unit Improved Flight Unit Improved Flight Unit > --- UTILITY ---------- X0-1V1's Piety Tracker > --- WEAPON ----------- Mini Grenade Launcher > --- INVENTORY -------- Structural Scanner Sensor Array Signal Interpreter Heavy Assault Rifle [Rating: 27] Favorites ----------- Power Deuterium Engine Engine Deuterium Engine Propulsion Improved Flight Unit Flight Unit Improved Flight Unit Utility Visual Processing Unit Device X0-1V1's Piety Tracker Processor Visual Processing Unit Weapon Mini Grenade Launcher Ballistic Gun Heavy Assault Rifle Launcher Mini Grenade Launcher Build | -11 -10 -10 ------- Run | Yrd Mat Sub Slots Evolved . | . . . Power . | . . . Propulsion . | . . . Utility . | . . . Weapon . | . . . Parts Attached 8 | . 2 6 Power . | . . . Engine . | . . . Core . | . . . Reactor . | . . . Propulsion 2 | . . 2 Treads . | . . . Leg . | . . . Wheel . | . . . Hover . | . . . Flight 2 | . . 2 Utility 3 | . 1 2 Device 3 | . 1 2 Storage . | . . . Processor . | . . . Hackware . | . . . Protection . | . . . Artifact . | . . . Weapon 3 | . 1 2 Energy Gun . | . . . Energy Cannon . | . . . Ballistic Gun 1 | . . 1 Ballistic Cannon . | . . . Launcher 2 | . 1 1 Special Weapon . | . . . Impact Weapon . | . . . Slashing Weapon . | . . . Piercing Weapon . | . . . Special Melee Weapon . | . . . Unidentified Prototypes 1 | . . 1 Parts Lost 4 | . . 4 Power 2 | . . 2 Propulsion 1 | . . 1 Utility . | . . . Weapon 1 | . . 1 Highest Loss Streak 2 | . . 2 To Critical Strikes . | . . . Average Backups 4 | . 3 4 Power . | . . . Propulsion . | . 1 . Utility 2 | . 2 3 Weapon . | . . 1 Tool/Special . | . . . Unused Backups 3 | . . 3 Power . | . . . Propulsion 2 | . . 2 Utility 1 | . . 1 Weapon . | . . . Tool/Special . | . . . Average Slot Usage (%) 72 | . 69 75 Engine 12 | . 14 11 Flight 32 | . 28 36 Device 6 | . 1 11 Processor 7 | . 11 2 Ballistic Gun 1 | . . 2 Launcher 11 | . 13 9 Peak Build Rating 27 | . 14 27 Average Rating 16 | . 12 20 On Entrance 8 | . 11 14 Avg Prop Armor Cover (%) 3 | . . 3 Naked Turns . | . . . Heaviest Build 16 | 10 11 16 Greatest Support 15 | 10 10 15 Greatest Overweight (x) 1 | . 1 1 Average Overweight (x) . | . . . Largest Inventory Capacity 10 | . 10 10 Average Capacity 10 | . 10 10 Most Carried 6 | . 5 6 Average Carried 4 | . 3 4 Final Capacity 10 | 10 10 10 Final Carried 6 | 1 5 6 Class Distribution -------------------- 100% | Mutant Dominant Class ---------------- Mutant | -10/Materials Mutant | -10/Subcaves Resources | -11 -10 -10 ----------- Run | Yrd Mat Sub Matter Collected 384 | . 148 236 Remotely . | . . . Salvage Created 520 | . 201 319 Parts . | . . . Haulers Intercepted . | . . . Recyclers Shooed . | . . . Parts Field Recycled . | . . . Retrieved Matter . | . . . Parts Self-Destructed . | . . . Prevented . | . . . Parts Restored . | . . . Kills | -11 -10 -10 ------- Run | Yrd Mat Sub Combat Hostiles Destroyed 29 | . 13 16 AOE 29 | . 13 16 Classes Destroyed 5 | . 4 1 Worker 1 | . 1 . Watcher 1 | . 1 . Swarmer 9 | . 6 3 Grunt 16 | . 7 9 Subdweller 4 | . . 4 Best Kill Streak 12 | . 12 6 Combat Bots Only 10 | . 10 6 Max Kills in Single Turn 4 | . 4 3 Gunslinging . | . . . Exploded 3 | . 3 3 Melee . | . . . Uniques/NPCs Destroyed . | . . . Combat | -11 -10 -10 -------- Run | Yrd Mat Sub Hostile Shots Fired 78 | . 13 65 Missed 33 | . 7 26 Hits 45 | . 6 39 Projectile 45 | . 6 39 Critical Strikes 1 | . . 1 Damage Taken 843 | . 157 686 Core 339 | . 85 254 Absorbed by Shields . | . . . Core Remaining (%) 100 | 100 . . Volleys Fired 37 | . 14 23 Largest 1 | . 1 1 Hottest 40 | . 30 40 Shots Fired 37 | . 14 23 Gun 2 | . . 2 Cannon . | . . . Launcher 35 | . 14 21 Special . | . . . Kinetic 5 | . . 5 Thermal . | . . . Explosive 32 | . 14 18 Electromagnetic . | . . . Robot Hit Streak 11 | . 2 11 Robot Miss Streak 5 | . 5 1 Penetration Max . | . . . Secondary Targets . | . . . Shots Hit Robots 15 | . 3 12 Core Hits 48 | . 23 25 Critical Kills . | . . . Critical Parts Destroyed . | . . . Critical Strikes . | . . . Melee Attacks . | . . . Impact . | . . . Slashing . | . . . Piercing . | . . . Sneak Attacks . | . . . Combat Hostiles . | . . . Follow-up Attacks . | . . . Damage Inflicted 2718 | . 996 1722 Guns 21 | . . 21 Cannons . | . . . Explosions 2657 | . 996 1661 Melee . | . . . Ramming 40 | . . 40 Kinetic 348 | . . 348 Thermal . | . . . Explosive 2330 | . 996 1334 Electromagnetic . | . . . Impact . | . . . Slashing . | . . . Piercing . | . . . Highest Corruption . | . . . Average Corruption . | . . . Corruption Purged . | . . . Corruption Blocked . | . . . Overload Shots . | . . . Overflow Damage 69 | . 21 48 Projectiles . | . . . Explosions 63 | . 21 42 Melee 6 | . . 6 Knockbacks . | . . . Impact . | . . . Kinetic . | . . . Secondary . | . . . Self-Inflicted Damage 326 | . 87 239 Shots 12 | . 4 8 Rammed 3 | . . 3 Targets Rammed 3 | . . 3 Kicked . | . . . Crushed . | . . . Highest Temperature 14 | . 14 . Average Temperature 8 | . 8 . Received Heat Transfer 123 | . 36 87 Siege Activations . | . . . Martial Activations . | . . . Shielding Activations . | . . . Robots Disrupted . | . . . Combat Hostiles . | . . . Robots Corrupted . | . . . Combat Hostiles . | . . . Parts Fried . | . . . Impact Corruptions 1 | . . 1 Robots Melted . | . . . Combat Hostiles . | . . . Parts Melted . | . . . Heat Transferred . | . . . Parts Sabotaged . | . . . Parts Stolen . | . . . Parts Stripped . | . . . Power Chain Reactions . | . . . Alert | -11 -10 -10 ------- Run | Yrd Mat Sub Maximum Alert Level 2 | . 2 . Low Security (%) 18 | . 18 . Level 1 9 | . 9 . Level 2 71 | . 71 . Level 3 . | . . . Level 4 . | . . . Level 5 . | . . . High Security . | . . . Max Security . | . . . Peak Influence 548 | . 548 . Initial . | . . . Average 408 | . 408 . Influence Increases 886 | . 646 240 Destroy 0b10 Robot/C 500 | . 260 240 Destroy 0b10 Robot/NC 10 | . 10 . Destroy Leader 52 | . 52 . Select Force Hacks 150 | . 150 . Disable Machine 90 | . 90 . Destroy Structure 69 | . 69 . Lose Combat Pursuer 15 | . 15 . Influence Decreases 554 | . 120 434 Entered New Map 254 | . . 254 Time Decay 260 | . 120 140 Lost Part 40 | . . 40 Squads Dispatched 3 | . 3 . Investigation 3 | . 3 . Extermination . | . . . Reinforcement . | . . . Assault . | . . . Garrison . | . . . Intercept . | . . . Searches Triggered . | . . . Construction Impeded . | . . . Haulers Reinforced . | . . . Active Scanning Responses . | . . . Cargo Convoy Interrupts . | . . . Stealth | -11 -10 -10 --------- Run | Yrd Mat Sub Distress Signals 1 | . 1 . Communications Jammed . | . . . Distress Signals . | . . . Times Spotted 38 | . 16 22 Peak Tracking Total 6 | . 6 5 Tactical Retreats 2 | . 1 1 Traps | -11 -10 -10 ------- Run | Yrd Mat Sub Traps Triggered 1 | . . 1 Indirectly . | . . . Trap Hack Attempts . | . . . Triggered . | . . . Disarmed . | . . . Reprogrammed . | . . . Reused . | . . . Traps Extracted . | . . . Installed . | . . . Triggered . | . . . Machines | -11 -10 -10 ---------- Run | Yrd Mat Sub Machines Disabled 6 | . 6 . Max in Single Turn 1 | . 1 . Machines Repaired . | . . . Machines Dismantled . | . . . Machines Sabotaged 3 | . 3 . Overloaded Fab Kills . | . . . Hacking | -11 -10 -10 --------- Run | Yrd Mat Sub Machines Accessed 4 | . 3 1 Terminals 3 | . 3 . Fabricators . | . . . Repair Stations . | . . . Recycling Units . | . . . Scanalyzers . | . . . Garrison Access . | . . . Total Hacks 6 | . 5 1 Successful 4 | . 3 1 Failed 2 | . 2 . Catastrophic . | . . . Database Lockouts . | . . . Manual 6 | . 6 . Terminals 5 | . 5 . Fabricators . | . . . Repair Stations . | . . . Recycling Units . | . . . Scanalyzers . | . . . Garrison Access . | . . . Terminal Hacks 1 | . . 1 Proto ID Catalog 1 | . . 1 Fabricator Hacks . | . . . Repair Station Hacks . | . . . Recycling Unit Hacks . | . . . Scanalyzer . | . . . Garrison Access Hacks . | . . . Unauthorized Hacks 3 | . 3 . Terminals 3 | . 3 . Sabotage 3 | . 3 . Fabricators . | . . . Repair Stations . | . . . Recycling Units . | . . . Scanalyzers . | . . . Garrison Access . | . . . Data Cores Recovered . | . . . Used . | . . . Hacking Detections . | . . . Full Trace Events . | . . . Feedback Events . | . . . Feedback Blocked . | . . . Robot Schematics Acquired . | . . . Robots Built . | . . . Authchips . | . . . Time . | . . . Total Robot Build Rating . | . . . Part Schematics Acquired . | . . . Parts Built . | . . . Authchips . | . . . Time . | . . . Total Part Build Rating . | . . . Part Studies Acquired . | . . . Parts Repaired . | . . . Time . | . . . Parts Recycled . | . . . Recycled Matter . | . . . Retrieved Matter . | . . . Retrieved Components . | . . . Parts Scanalyzed . | . . . Part Schematics Acquired . | . . . Parts Damaged . | . . . Bothacking | -11 -10 -10 ------------ Run | Yrd Mat Sub Used RIF Installer . | . . . Robots Hacked . | . . . Non-combat . | . . . Combat . | . . . Robot Hacks Applied . | . . . Relay Couplers Released . | . . . Fabnet Peak Effective % . | . . . Robots Rewired . | . . . Allies Hacked . | . . . Hacks Repelled . | . . . Allies | -11 -10 -10 -------- Run | Yrd Mat Sub Total Allies . | . . . Largest Group . | . . . Highest-Rated Group . | . . . Highest-Rated Ally . | . . . Total Orders . | . . . Ally Attacks . | . . . Total Damage . | . . . Kills . | . . . Allies Corrupted . | . . . Allies Melted . | . . . X0-1V1 Amusement Gains 8 | . 3 5 Good Acts 8 | . . 8 Bad Acts 15 | . . 15 Intel | -11 -10 -10 ------- Run | Yrd Mat Sub Active Infowar (turns) 346 | . 228 118 Optics 275 | . 223 52 Sensors 5 | . 5 . Structural 77 | . 11 66 Robot Analysis Total . | . . . Derelict Logs Recovered . | . . . Drone Launches . | . . . Drone Recoveries . | . . . Exploration | -11 -10 -10 ------------- Run | Yrd Mat Sub Turns Passed 539 | . 255 284 Spaces Moved 961 | 1 384 576 Core . | . . . Treads . | . . . Legs . | . . . Wheels . | . . . Hover . | . . . Flight 961 | 1 384 576 Fastest Speed 34 | 37 37 34 Average Speed 36 | 37 37 36 Slowest Speed 110 | 37 107 110 Overloaded Moves . | . . . Propulsion Burnouts . | . . . Robots Hopped 15 | . 8 7 Potential Cave-ins 2 | . . 2 Cave-ins Triggered . | . . . Exploration Rate (%) 36 | 2 72 36 Regions Visited 2 Branch Regions 1 Pre-discovered Areas . | . . . Known Exits Taken . | . . . Unknown Exits Taken 2 | 1 1 . Scrap Searched . | . . . Spaces Dug 7 | . . 7 Terrain Destroyed 272 | . 86 186 Melee . | . . . Projectile . | . . . AOE 272 | . 86 186 Terrain Rammed 1 | . . 1 Walls Destroyed . | . . . Machines Disabled . | . . . Actions | -11 -10 -10 --------- Run | Yrd Mat Sub Total 1094 | . 473 621 Wait 87 | . 77 10 Move 931 | . 368 563 Hop 13 | . 7 6 Pick Up 2 | . 2 . Fast Attach 3 | . 1 2 Attach 6 | . 1 5 Detach 9 | . 3 6 Swap 2 | . . 2 Drop . | . . . Fire 37 | . 14 23 Melee . | . . . Ram 4 | . . 4 Kick . | . . . Crush . | . . . Escape Stasis . | . . . Rewire . | . . . Trap . | . . . Miscellaneous . | . . . Route ------- -11/Scrapyard -10/Materials (discovered 3 exits: [*Mat x2] / *Sub) -10/Subcaves History --------- Turn | Location | Event 1 | -11/Scrapyard | Discovered new exit (range 0) 1 | -11/Scrapyard | Entered Materials 80 | -10/Materials | Discovered new exit (range 3) 110 | -10/Materials | Discovered new exit (range 14) 115 | -10/Materials | Destroyed 10 combat bots 240 | -10/Materials | Prayed at D.C.S.S. Altar Unit 250 | -10/Materials | Discovered new exit (range 11) 256 | -10/Materials | Entered Subcaves 304 | -10/Subcaves | X0-1V1 mutated your Utility slot to Propulsion slot 330 | -10/Subcaves | Build established: Mutant 334 | -10/Subcaves | X0-1V1 sent hostile G-34 Mercenary (x4) 363 | -10/Subcaves | Core integrity fell below 50% 368 | -10/Subcaves | Visited 4L-MR0's lab 440 | -10/Subcaves | X0-1V1 sent hostile G-34 Mercenary (x5) 442 | -10/Subcaves | Core integrity fell below 20% 481 | -10/Subcaves | X0-1V1 mutated your Weapon slot to Power slot 519 | -10/Subcaves | Core integrity restored by X0-1V1 (+65) 519 | -10/Subcaves | X0-1V1 sent hostile S-10 Pest (x4) 537 | -10/Subcaves | X0-1V1 sent you into danger 540 | -10/Subcaves | Destroyed by 7T-BXW(R) with Subdweller Machine Gun Last Messages --------------- 00524_ X0-1V1 ensures you are ready for glorious battle (+Shotgun). 00526_ Slammed into S-10 Pest. 00528_ X0-1V1: "There's a penalty for shooting from the hip 'round these parts." (-7% ranged accuracy) 00529_ Slammed into S-10 Pest. 00529_ Destroyed Flight Unit. 00529_ S-10 Pest system corrupted by crushing effect. 00530_ X0-1V1 connects you with a stream of twisted latent energy (+12 energy generation). X0-1V1's Piety Tracker suddenly appears amidst shimmering waves of color. 00531_ Movement behavior is fully back under control. 00531_ X0-1V1 makes it rain matter. 00532_ Acquired 38 matter. 00532_ X0-1V1 reimagines you as a refrigerator in hell. 00533_ S-10 Pest destroyed. 00534_ Discarded Shotgun. 00534_ Acquired Sub. Shrapnel Launcher. 00535_ S-10 Pest destroyed. 00537_ X0-1V1: "Enjoy the ride!" 00540_ X0-1V1: "What?! That's it?" Map ----- +----------------------------------------------------+ | ####?### ## #######????????????????????? | | ###??## ## #####????????????????????? | | ##??### # " #####?????????????????? | | # ##??## ###"" " ########??????????????? | | #####??### ##### ""#####??????????????? | | #####??## #### " ##??????????????? | | ##?????### #### ##??????????????? | | ##?????## ##### ###??????????????? | | ##?????## ####" #" !& ###??????????????? | | ##?????## #####"""" [ ##??????????????? | | ???????## ##"## " ###?????????????? | | ???????### " #####????????????? | | ???????## " " ###????????????? | | ???????### ## ####" ##????????????? | | ???????############ " ##????????????? | | ????????########### " ##????????????? | | ?????????####????###"! " ##????????????? | | ????????#####????##" """"##????????????? | | ???????#### #????##" "#"" ##????????????? | | ???????### ###??##" " ##????????????? | | ???????## ####?##"# ##????????????? | | ?????????## ########## ##????????????? | | ?????????## ########## ##????????????? | | ###????##### ########## ###????????????? | | ########## ##### #R ###????????????? | | "###### ## @ ###????????????? | | "" """ ### ##????????????? | | " " """"""""### #### ###????????????? | | # " #"""" ### #### ##????????????? | | #### "###"""" ##### ##????????????? | | ??# "####""" ###?## ###????????????? | | ?## ####### ##### ##????????????? | | ?### ######### #### # ##?????????????? | | ?## % "###?#### # ##????????????? | | ?## " "###### # ##????????????? | | ?## ""###### ### ###????????????? | | ?##% ""#### ##### ####????????????? | | ?## % "## #?######?????????????? | | ?##% %% # #?###???????????????? | | ?### ### ##?????????????????? | | ?###" ######## #####?????????????????? | | ??###" "###############?????????????????? | | ???###! ###?????#####????????????????????? | | ????# ####??????????????????????????????? | | ????# ###???????????????????????????????? | | ????## ##????????????????????????????????? | | ?????## ##???????????????????????????????? | | ?????## #???? ?????????????????????????? | | ?????# #??? ?????????????????????????? | | ?????# ##?? ?????????????????????????? | +----------------------------------------------------+ Best States ------------- Heat Dissipation 25 Energy Generation 24 Energy Capacity 280 Matter Stores 118 Matter Capacity 1000 Sight Range 18 Robot Scan Range 14 Terrain Scan Density 10 Evasion (%) 63 Item Schematics ----------------- None Robot Schematics ------------------ None Fabricated ------------ Nothing Repaired ---------- Nothing Studied --------- None Alien Tech Used ----------------- None Achievements -------------- None Challenges ------------ None Cogshop Purchases (13) ------------------------ Imp. Flight Unit (1049) Imp. Flight Unit (1049) Mni. Grenade Launcher (1049) Imp. Flight Unit (1049) Deuterium Engine (Loot Box) Visual Processing Unit (699) Structural Scanner (599) Cld. Ion Engine (1367) Imp. Flight Unit (1204) Imp. Ion Engine (727) Carbon-fiber Leg (Loot Box) Imp. Flight Unit (1204) Sub. Shrapnel Launcher (1010) Game ------ Seed PointRapidRegenerator Manual? 0 Play Time 00:11:24 Cumulative 1327.9 hours Start 2026.06.24 @ 17:50:53 End 2026.06.24 @ 17:58:16 Sessions 1 Manual Loads 0 Difficulty Rogue Special Mode AFD2019/Pay2Buy Game No. 1627 Rogue 1343 Adventurer 124 Explorer 160 Win Type - Total 66 Types 51/0/9/4/1/0/0/1/0/0 Lore% 93 Gallery% 83 Achievement% 71 Wizard Run 0 Options --------- Layout 0 ASCII 0 Keyboard 1 Movement Numpad Keybinds 0 Fullscreen 2 Font 18/X11 Map View 76x50 Zoom Use 0% Tactical HUD 1 Map Filters NONE Filters NONE Steam 1 RUN: 0dab4f26-f8d4-4cbf-a10f-0514da576c57